bitfinex/quotes_SOLUSD_20241010
["timestamp","ask_amount","ask_price","bid_price","bid_amount"]
[1728558775991,7.1547,139.77,139.75,23.776884]
[1728558776187,7.1547,139.77,139.74,24.027864]
[1728558776373,7.1547,139.77,139.75,1.43090858]
[1728558777403,7.1547,139.77,139.74,24.027864]
[1728558777900,7.1547,139.77,139.75,1.43090876]
[1728558778102,42.432,139.79,139.68,22.6787]
[1728558778287,7.1576,139.71,139.69,5.35082728]
[1728558778484,7.1576,139.71,139.7,5.35082728]
[1728558778701,7.1576,139.71,139.68,22.6787]
[1728558778882,17.8879,139.76,139.69,5.35172505]
[1728558779080,7.1573,139.72,139.68,29.8378]
[1728558779398,7.1573,139.72,139.7,24.027864]
[1728558779777,7.1573,139.72,139.69,24.027864]
[1728558779976,7.1573,139.72,139.71,0.12549]
[1728558780291,7.1573,139.72,139.69,24.027864]
[1728558780797,7.1573,139.72,139.71,0.12549]
[1728558781183,7.1573,139.72,139.7,0.12549]
[1728558781383,7.1573,139.72,139.7,1.55687916]
[1728558781585,7.1573,139.72,139.7,0.12549]
[1728558782585,7.1573,139.72,139.7,1.55688178]
[1728558783906,7.1567,139.73,139.72,0.12549]
[1728558784109,7.1558,139.75,139.73,0.12549]
[1728558784813,7.1558,139.75,139.72,0.25098]
[1728558790289,32.02682009,139.79,139.74,7.40668]
[1728558790290,7.1541,139.78,139.74,7.40668]
[1728558790496,7.1541,139.78,139.76,0.12549]
[1728558791115,7.1541,139.78,139.76,0.25098]
[1728558793213,7.1556,139.76,139.73,20.0]
[1728558793412,7.1556,139.76,139.71,40.33491206]
[1728558793413,7.1556,139.76,139.72,1.4311089]
[1728558793604,7.1556,139.76,139.72,21.4311089]
[1728558794522,7.1556,139.76,139.73,24.027864]
[1728558794987,7.1556,139.76,139.73,25.45897308]
[1728558799317,7.1544,139.78,139.73,50.50657308]
[1728558800400,7.1545,139.78,139.74,7.156]
[1728558800600,7.1545,139.78,139.75,24.027864]
[1728558802217,7.1549,139.77,139.74,24.027864]
[1728558804518,7.1549,139.77,139.74,25.45882448]
[1728558805807,7.1549,139.77,139.74,24.027864]
[1728558806823,7.1549,139.77,139.74,25.45881036]
[1728558807508,25.35357131,139.81,139.74,37.88084379]
[1728558807713,25.35357131,139.81,139.73,17.8915]
[1728558807714,25.35357131,139.81,139.76,24.027864]
[1728558807909,7.1541,139.78,139.76,24.027864]
[1728558814424,7.1541,139.78,139.75,24.027864]
[1728558816535,7.1541,139.78,139.76,1.43084639]
[1728558816705,7.1541,139.78,139.75,24.027864]
[1728558817805,7.1541,139.78,139.75,25.45869246]
[1728558818425,7.1541,139.78,139.75,24.027864]
[1728558822027,7.1535,139.8,139.77,0.12549]
[1728558822207,7.1537,139.79,139.77,0.12549]
[1728558826628,12.8794468,139.84,139.77,0.12549]
[1728558826629,7.51634795,139.9,139.8,2.0]
[1728558826836,15.29920782,139.96,139.8,2.0]
[1728558826837,3.24,139.96,139.94,7.39688]
[1728558827165,15.2806,140.05,139.94,24.027864]
[1728558827318,15.2806,140.05,139.94,51.173764]
[1728558827522,15.2806,140.05,139.94,52.60250164]
[1728558827729,15.2806,140.05,139.94,152.42897669]
[1728558828024,15.2806,140.05,139.94,136.82590389]
[1728558828025,22.4209,140.05,139.94,136.82590389]
[1728558828235,7.78597243,140.07,140.0,7.1427]
[1728558828236,7.1398,140.06,140.0,7.1427]
[1728558829518,7.78597243,140.07,140.01,7.1422]
[1728558829833,7.14,140.06,140.0,7.1427]
[1728558830620,7.1409,140.04,139.99,24.027864]
[1728558830830,7.78597243,140.07,139.99,32.59958122]
[1728558831040,7.1403,140.05,139.99,31.171164]
[1728558832033,7.78597243,140.07,139.94,17.8636]
[1728558832034,20.0,140.06,139.94,17.8636]
[1728558832220,0.12549,140.04,139.96,30.0]
[1728558832540,7.1428,140.0,139.96,31.42891856]
[1728558832832,7.1436,139.99,139.96,30.0]
[1728558833034,7.1428,140.0,139.96,30.0]
[1728558835428,7.1428,140.0,139.94,25.0094]
[1728558836114,20.12549,140.04,139.94,25.0094]
[1728558836314,7.1433,139.99,139.94,25.0094]
[1728558836739,7.1433,139.99,139.95,0.12549]
[1728558840945,7.1429,140.0,139.95,8.82517637]
[1728558841117,6.2829,140.03,139.95,8.82517637]
[1728558841118,6.2829,140.03,139.97,7.1438]
[1728558841319,20.0,140.02,139.96,17.8614]
[1728558841946,7.1427,140.01,139.96,25.0062]
[1728558842521,7.1429,140.0,139.96,25.0062]
[1728558843439,35.3991,140.02,139.9,42.1007]
[1728558843634,7.1434,139.99,139.94,7.1455]
[1728558844547,7.1434,139.99,139.93,17.99099]
[1728558844740,7.1434,139.99,139.95,7.1453]
[1728558846123,15.3991,140.02,139.95,7.1453]
[1728558846323,7.1432,140.0,139.96,1.42880489]
[1728558847120,7.1432,140.0,139.95,7.1453]
[1728558849524,7.1432,140.0,139.96,8.69879314]
[1728558849731,7.1432,140.0,139.96,7.26999]
[1728558851643,7.1432,140.0,139.96,8.69878249]
[1728558852749,7.1432,140.0,139.96,7.26999]
[1728558854036,7.1432,140.0,139.96,8.69878187]
[1728558854436,7.1432,140.0,139.96,7.26999]
[1728558854949,7.1432,140.0,139.96,8.69878164]
[1728558855446,7.1432,140.0,139.96,7.26999]
[1728558855651,15.3991,140.02,139.96,7.26999]
[1728558855652,7.1434,139.99,139.96,0.12549]
[1728558855834,7.1443,139.97,139.94,24.027864]
[1728558856434,7.1439,139.98,139.94,7.39678]
[1728558856652,7.1439,139.98,139.95,1.42889644]
[1728558856856,7.1439,139.98,139.94,7.39678]
[1728558857032,7.1435,139.99,139.95,1.42888508]
[1728558857232,7.1435,139.99,139.95,8.57428508]
[1728558857557,7.1435,139.99,139.95,7.1454]
[1728558858653,7.1435,139.99,139.96,1.4288404]
[1728558858842,7.1435,139.99,139.95,8.5742404]
[1728558859958,7.1435,139.99,139.95,7.1454]
[1728558862748,20.0,140.01,139.94,18.11558]
[1728558862958,7.1447,139.97,139.94,18.11558]
[1728558863649,7.1439,139.98,139.94,25.26138]
[1728558864760,7.1439,139.98,139.94,26.69031063]
[1728558865360,7.1439,139.98,139.95,7.1453]
[1728558865566,7.1439,139.98,139.94,25.26128]
[1728558867864,7.1439,139.98,139.95,1.42887037]
[1728558868967,7.1439,139.98,139.94,25.26128]
[1728558869160,7.1444,139.97,139.94,18.11558]
[1728558869468,7.1444,139.97,139.95,1.42892361]
[1728558869672,7.144,139.98,139.95,1.42892361]
[1728558869879,7.144,139.98,139.94,25.26138]
[1728558871967,6.95512869,139.98,139.95,1.42891111]
[1728558872273,6.95512869,139.98,139.96,10.80151169]
[1728558872571,6.95512869,139.98,139.97,4.15442757]
[1728558872771,6.95512869,139.98,139.94,25.26138]
[1728558872975,6.95512869,139.98,139.97,4.15450506]
[1728558873177,6.95512869,139.98,139.95,4.15450506]
[1728558873470,6.95512869,139.98,139.96,4.15450506]
[1728558873658,6.95512869,139.98,139.97,4.15450506]
[1728558878956,6.95512869,139.98,139.94,17.99009]
[1728558879371,6.95512869,139.98,139.95,3.9714244]
[1728558879716,35.7065,140.04,139.95,3.9714244]
[1728558879717,9.03014651,140.07,139.97,6.0183]
[1728558879851,16.071,140.11,140.03,0.12549]
[1728558880046,16.071,140.11,140.03,8.69469847]
[1728558880453,16.071,140.11,140.04,1.42800017]
[1728558880652,16.071,140.11,140.03,7.26669]
[1728558880984,7.1378,140.1,140.04,7.1404]
[1728558883257,16.071,140.11,140.06,17.8484]
[1728558883453,16.071,140.11,140.06,24.988]
[1728558884255,16.071,140.11,140.07,7.1388]
[1728558884457,16.071,140.11,140.06,17.8484]
[1728558884777,23.2082,140.11,140.06,24.9881]
[1728558895088,23.2083,140.11,140.07,8.69231917]
[1728558895286,23.2083,140.11,140.07,7.26459]
[1728558895786,23.2083,140.11,140.07,8.69225088]
[1728558896888,23.2083,140.11,140.07,7.26459]
[1728558898084,23.2083,140.11,140.07,8.69224962]
[1728558898261,23.2083,140.11,140.07,7.1391]
[1728558898466,23.2083,140.11,140.07,8.56676982]
[1728558898966,23.2083,140.11,140.07,7.1391]
[1728558900988,23.2083,140.11,140.05,0.12549]
[1728558900989,16.071,140.11,140.05,0.12549]
[1728558901376,7.1378,140.1,140.06,7.1396]
[1728558901573,7.1378,140.1,140.06,8.56738818]
[1728558901978,7.9603176,140.09,140.06,1.42778818]
[1728558902584,0.8221176,140.09,140.07,0.12549]
[1728558902784,0.8221176,140.09,140.08,31.166564]
[1728558902980,0.8221176,140.09,140.08,45.01954379]
[1728558903368,0.8221176,140.09,140.08,46.44689133]
[1728558904473,0.8221176,140.09,140.08,73.780364]
[1728558904792,0.8221176,140.09,140.08,87.63334379]
[1728558905678,0.8221176,140.09,140.08,57.660664]
[1728558906397,0.8221176,140.09,140.08,59.08799173]
[1728558906980,0.8221176,140.09,140.08,57.660664]
[1728558907384,0.8221176,140.09,140.08,59.08799036]
[1728558907700,0.8221176,140.09,140.08,31.166564]
[1728558908372,0.8221176,140.09,140.08,32.59398715]
[1728558908576,0.8221176,140.09,140.08,31.166564]
[1728558908793,0.8221176,140.09,140.08,32.59398074]
[1728558909197,0.8221176,140.09,140.08,31.166564]
[1728558909578,0.8221176,140.09,140.08,32.59398051]
[1728558909779,0.8221176,140.09,140.08,31.166564]
[1728558913098,0.8221176,140.09,140.08,52.59387942]
[1728558914103,0.8221176,140.09,140.08,66.44685921]
[1728558917229,0.8221176,140.09,140.08,52.59387942]
[1728558918705,0.8221176,140.09,140.08,31.166564]
[1728558918909,0.8221176,140.09,140.08,32.59391884]
[1728558919888,0.8221176,140.09,140.08,31.166564]
[1728558921613,0.8221176,140.09,140.08,32.59395044]
[1728558922608,0.8221176,140.09,140.08,31.166564]
[1728558923315,0.8221176,140.09,140.08,32.59395023]
[1728558924315,0.8221176,140.09,140.08,31.166564]
[1728558924815,0.8221176,140.09,140.06,7.1397]
[1728558926523,0.8221176,140.09,140.07,0.12549]
[1728558927424,0.8221176,140.09,140.08,41.24265979]
[1728558927593,0.8221176,140.09,140.08,66.44688441]
[1728558927798,0.8221176,140.09,140.08,65.01954379]
[1728558927995,0.8221176,140.09,140.08,24.027864]
[1728558928321,0.8221176,140.09,140.08,0.12549]
[1728558930802,0.8221176,140.09,140.08,1.55304805]
[1728558931521,0.8221176,140.09,140.08,8.69174805]
[1728558935110,0.8221176,140.09,140.08,32.59412205]
[1728558935815,0.8221176,140.09,140.08,31.166564]
[1728558936015,0.8221176,140.09,140.08,32.59395979]
[1728558940411,0.8221176,140.09,140.08,31.166564]
[1728558942827,0.8221176,140.09,140.08,32.59395078]
[1728558943644,0.8221176,140.09,140.08,31.166564]
[1728558943931,0.8221176,140.09,140.08,32.59394111]
[1728558946737,0.8221176,140.09,140.08,31.166564]
[1728558950822,0.8221176,140.09,140.08,0.25098]
[1728558952527,0.8221176,140.09,140.08,8.81715914]
[1728558952927,0.8221176,140.09,140.08,7.38968]
[1728558953630,0.8221176,140.09,140.08,8.81715744]
[1728558955317,0.8221176,140.09,140.08,32.59404144]
[1728558955845,0.8221176,140.09,140.08,0.25098]
[1728558956029,0.8221176,140.09,140.08,7.38968]
[1728558956440,0.8221176,140.09,140.06,24.9878]
[1728558956747,0.8221176,140.09,140.07,1.42761767]
[1728558961952,0.8221176,140.09,140.07,0.25098]
[1728558963818,0.8221176,140.09,140.03,37.8522]
[1728558964021,0.8221176,140.09,139.98,70.0]
[1728558964022,15.8952,140.08,140.04,5.31669052]
[1728558964241,7.1399,140.06,140.02,17.8545]
[1728558964432,7.1399,140.06,140.03,33.88567561]
[1728558964633,7.1399,140.06,140.04,5.31637394]
[1728558964839,15.8952,140.08,140.03,28.56930167]
[1728558965041,7.1394,140.07,140.04,5.31656891]
[1728558965243,7.1394,140.07,140.03,28.56930167]
[1728558965455,7.1394,140.07,140.04,5.31577714]
[1728558965635,7.1394,140.07,140.03,28.56930167]
[1728558965830,7.1394,140.07,140.04,5.31575896]
[1728558966140,15.8952,140.08,140.05,8.56810209]
[1728558967233,15.8952,140.08,140.07,7.1392]
[1728558967432,0.8221176,140.09,140.07,8.56683042]
[1728558968151,0.8221176,140.09,140.07,1.42763042]
[1728558968645,0.8221176,140.09,140.07,0.12549]
[1728558970745,0.8221176,140.09,140.07,1.55310763]
[1728558971428,0.8221176,140.09,140.07,0.12549]
[1728558972425,0.8221176,140.09,140.07,1.55310391]
[1728558972626,0.8221176,140.09,140.08,0.12549]
[1728558974350,0.8221176,140.09,140.08,1.6785064]
[1728558974755,0.8221176,140.09,140.07,7.1392]
[1728558975243,0.8221176,140.09,140.07,0.25098]
[1728558976142,0.8221176,140.09,140.06,24.9888]
[1728558976348,0.8221176,140.09,140.06,17.8492]
[1728558976645,7.9603176,140.09,140.06,17.8492]
[1728558977330,7.9603176,140.09,140.05,7.26549]
[1728558977525,7.9603176,140.09,140.06,0.25098]
[1728558978346,0.8221176,140.09,140.04,7.1406]
[1728558978644,0.8221176,140.09,140.03,17.852]
[1728558978645,7.1393,140.07,140.03,38.84607979]
[1728558978850,7.1393,140.07,140.04,5.31426569]
[1728558979036,7.1393,140.07,140.03,24.9931]
[1728558979229,7.1393,140.07,140.04,5.31442599]
[1728558979550,0.8221176,140.09,140.01,43.776884]
[1728558979737,7.14,140.06,140.03,23.776884]
[1728558979938,7.14,140.06,140.02,20.99457979]
[1728558980155,7.1403,140.05,140.01,40.99487979]
[1728558980822,7.1403,140.05,140.01,7.1419]
[1728558982551,7.1403,140.05,140.02,0.25098]
[1728558983634,6.3642,140.06,140.01,0.12549]
[1728558983853,6.3642,140.06,140.01,0.25098]
[1728558984133,7.1411,140.04,140.01,0.25098]
[1728558984335,17.8512,140.05,139.97,17.8598]
[1728558984558,17.8512,140.05,139.97,31.71277979]
[1728558984735,7.1418,140.02,139.98,7.1435]
[1728558985141,7.1418,140.02,139.98,20.99647979]
[1728558985460,7.1408,140.04,140.0,7.1423]
[1728558985637,7.1413,140.03,139.99,38.85357979]
[1728558985953,7.1415,140.03,140.0,1.42834129]
[1728558986253,7.1415,140.03,139.99,17.8574]
[1728558986759,7.1418,140.02,139.99,17.8574]
[1728558988571,16.0896,140.03,140.0,7.39338]
[1728558988758,16.0896,140.03,140.01,1.42828515]
[1728558993469,16.461,140.07,140.02,24.027864]
[1728558993642,7.1401,140.06,140.02,31.169464]
[1728558994264,7.1401,140.06,140.02,32.59746143]
[1728558994443,7.1401,140.06,140.02,31.169464]
[1728558994638,16.461,140.07,140.01,17.8557]
[1728558994843,7.1407,140.05,140.02,1.42816047]
[1728558995339,23.6004,140.07,140.03,7.39218]
[1728558995562,23.6004,140.07,140.04,1.42799143]
[1728558995860,7.2211176,140.09,140.03,17.8528]
[1728558996040,7.1389,140.08,140.04,8.81967357]
[1728558996239,7.2211176,140.09,140.05,7.1402]
[1728558996240,14.3595176,140.09,140.05,7.1402]
[1728558996446,14.3595176,140.09,140.04,31.168164]
[1728558996447,7.1387,140.08,140.04,31.168164]
[1728558996641,7.1387,140.08,140.05,1.42783388]
[1728558997457,7.1387,140.08,140.04,31.168164]
[1728558997661,7.1392,140.07,140.04,24.027864]
[1728558998040,7.1399,140.06,140.04,0.25098]
[1728558999749,7.1399,140.06,140.03,0.25098]
[1728558999943,7.1399,140.06,140.03,1.67897254]
[1728559000667,7.2211176,140.09,140.03,31.70617979]
[1728559000842,7.1392,140.07,140.04,0.12549]
[1728559002448,7.1392,140.07,140.04,1.55343352]
[1728559002648,7.1392,140.07,140.04,0.12549]
[1728559003069,7.1392,140.07,140.04,1.55343362]
[1728559007347,7.1398,140.06,140.04,1.55343362]
[1728559007658,7.1398,140.06,140.04,0.12549]
[1728559008369,7.1403,140.05,140.04,0.12549]
[1728559008563,17.847,140.08,140.03,0.12549]
[1728559008765,7.1406,140.05,140.03,0.12549]
[1728559008971,17.847,140.08,140.02,0.12549]
[1728559008972,7.1408,140.04,140.02,0.12549]
[1728559009667,7.2211176,140.09,140.01,20.0]
[1728559009860,7.1415,140.03,139.99,20.99587979]
[1728559010573,33.047,140.06,139.99,13.85297979]
[1728559010870,7.1408,140.04,140.0,22.42369362]
[1728559011044,15.1973,140.06,140.01,18.10658]
[1728559011247,15.1973,140.06,140.02,1.42815617]
[1728559011248,7.1404,140.05,140.02,1.42815617]
[1728559012284,7.1408,140.04,140.01,18.10658]
[1728559013573,15.1973,140.06,140.01,0.12549]
[1728559013574,7.1413,140.03,140.01,0.12549]
[1728559013880,7.1413,140.03,140.0,24.027864]
[1728559014970,7.1413,140.03,140.0,0.25098]
[1728559015377,7.1418,140.02,139.99,7.1431]
[1728559015555,7.1418,140.02,139.99,0.25098]
[1728559017464,15.1973,140.06,139.99,0.25098]
[1728559017684,7.1423,140.01,139.99,0.25098]
[1728559017849,6.5863,140.04,139.95,26.25998876]
[1728559018053,6.5863,140.04,139.97,20.0]
[1728559018054,7.1431,140.0,139.97,20.0]
[1728559022473,17.8538,140.03,139.97,0.25098]
[1728559022660,17.8538,140.03,139.98,1.42858563]
[1728559023361,6.5863,140.04,139.99,0.12549]
[1728559024075,7.1421,140.02,139.99,0.12549]
[1728559024779,7.1421,140.02,139.99,1.55395387]
[1728559026258,7.1427,140.01,139.97,25.13019]
[1728559026462,7.1427,140.01,139.98,0.12549]
[1728559027788,7.1429,140.0,139.97,0.12549]
[1728559027966,7.1439,139.98,139.94,25.0093]
[1728559028163,16.2453,140.0,139.94,17.8636]
[1728559028365,7.1447,139.97,139.93,7.1463]
[1728559028568,7.1445,139.97,139.93,7.1463]
[1728559029888,7.1445,139.97,139.94,0.25098]
[1728559032089,7.144,139.98,139.94,0.25098]
[1728559032268,7.144,139.98,139.94,7.39678]
[1728559034881,7.144,139.98,139.94,8.82573209]
[1728559036391,7.144,139.98,139.94,8.82573333]
[1728559036870,7.144,139.98,139.94,1.67993333]
[1728559037070,7.144,139.98,139.94,8.82563333]
[1728559038884,7.45770062,140.02,139.98,7.1435]
[1728559038885,14.59960062,140.02,139.98,7.1435]
[1728559039189,7.1419,140.02,139.98,7.1435]
[1728559046376,15.8824,140.03,139.99,19.28664709]
[1728559046703,15.8824,140.03,140.0,7.1427]
[1728559047002,23.0237,140.03,139.99,26.42974709]
[1728559047381,23.0237,140.03,140.0,7.26809]
[1728559047382,15.8824,140.03,140.0,7.26809]
[1728559047989,15.8824,140.03,140.0,8.69641606]
[1728559048895,7.1409,140.04,140.0,8.69641606]
[1728559051881,7.1409,140.04,140.01,7.26779]
[1728559052081,7.1404,140.05,140.01,7.26779]
[1728559052589,16.6147,140.06,139.97,35.7202]
[1728559052590,16.6147,140.06,140.04,0.12549]
[1728559052787,0.8221176,140.09,140.04,0.12549]
[1728559052788,0.8221176,140.09,140.04,1.55343502]
[1728559053382,7.1388,140.08,140.04,8.69403502]
[1728559053578,7.9606176,140.09,140.05,7.1402]
[1728559054005,7.9606176,140.09,140.06,1.42781904]
[1728559055105,7.9606176,140.09,140.05,8.56797742]
[1728559056110,7.9606176,140.09,140.06,1.4277776]
[1728559056492,7.9606176,140.09,140.05,7.1402]
[1728559057385,7.9606176,140.09,140.06,1.42778082]
[1728559058485,0.8221176,140.09,140.07,0.12549]
[1728559058685,7.9604176,140.09,140.06,0.12549]
[1728559059208,7.9604176,140.09,140.06,0.25098]
[1728559060586,0.8221176,140.09,140.05,0.12549]
[1728559060896,7.1393,140.07,140.05,0.12549]
[1728559061503,7.1393,140.07,140.04,0.25098]
[1728559064618,7.1393,140.07,140.03,7.1409]
[1728559065289,7.1393,140.07,140.04,1.42797666]
[1728559065705,7.1393,140.07,140.03,7.1409]
[1728559066508,7.1393,140.07,140.03,8.56887739]
[1728559066814,7.1393,140.07,140.03,7.1409]
[1728559067336,7.1393,140.07,140.03,8.56887721]
[1728559068010,7.9604176,140.09,140.05,7.1402]
[1728559068217,7.77168113,140.09,140.05,8.56803957]
[1728559068814,7.1388,140.08,140.05,0.12549]
[1728559068990,7.1388,140.08,140.05,1.55331934]
[1728559069407,0.63338113,140.09,140.05,1.55331934]
[1728559069686,7.77178113,140.09,140.05,8.69321934]
[1728559071308,7.77178113,140.09,140.06,0.12549]
[1728559074919,7.77178113,140.09,140.05,0.25098]
[1728559074920,0.63338113,140.09,140.05,0.25098]
[1728559075100,7.1393,140.07,140.05,0.12549]
[1728559077229,7.1393,140.07,140.03,7.26659]
[1728559077407,7.1393,140.07,140.04,1.42796339]
[1728559078319,7.1393,140.07,140.04,8.56866339]
[1728559079022,7.1389,140.08,140.04,8.56866339]
[1728559079214,7.1389,140.08,140.04,22.42164318]
[1728559081830,7.1389,140.08,140.05,0.12549]
[1728559082123,0.63338113,140.09,140.06,1.42783737]
[1728559082349,7.77198113,140.09,140.06,1.42783737]
[1728559085038,7.77198113,140.09,140.05,7.26569]
[1728559085333,7.1388,140.08,140.05,7.26569]
[1728559085735,7.1388,140.08,140.05,0.12549]
[1728559086310,7.1388,140.08,140.05,1.55333366]
[1728559086510,7.1388,140.08,140.05,0.12549]
[1728559090817,7.1388,140.08,140.05,1.55333142]
[1728559091024,0.63338113,140.09,140.05,1.55333142]
[1728559091238,7.77168113,140.09,140.06,17.8491]
[1728559092615,7.77168113,140.09,140.05,8.69353142]
[1728559094218,0.63338113,140.09,140.05,1.55333142]
[1728559094443,7.1388,140.08,140.05,0.12549]
[1728559095445,7.1388,140.08,140.05,28.69353008]
[1728559096649,7.1388,140.08,140.05,27.26569]
[1728559099849,7.1404,140.05,140.03,0.12549]
[1728559100024,24.60678113,140.09,140.03,20.0]
[1728559100025,7.1401,140.06,140.03,20.0]
[1728559100223,7.1394,140.07,140.03,27.1412]
[1728559102546,7.1398,140.06,140.03,27.1412]
[1728559105746,7.1394,140.07,140.03,27.1412]
[1728559105940,7.1394,140.07,140.03,28.56923994]
[1728559106949,7.1394,140.07,140.03,27.1412]
[1728559110245,7.1394,140.07,140.03,28.5692483]
[1728559110756,7.1394,140.07,140.03,27.1412]
[1728559112537,7.1399,140.06,140.03,20.0]
[1728559112863,7.14,140.06,140.02,25.24698]
[1728559114261,7.1396,140.07,140.03,7.1411]
[1728559115855,7.1396,140.07,140.03,8.56919218]
[1728559117663,7.1396,140.07,140.03,7.1411]
[1728559122061,7.1396,140.07,140.03,8.56914243]
[1728559122562,7.1396,140.07,140.03,7.1411]
[1728559122742,7.1396,140.07,140.03,8.56914128]
[1728559122938,13.89938113,140.09,140.04,18.10268]
[1728559123165,13.89908113,140.09,140.05,1.42788586]
[1728559123358,13.89908113,140.09,140.06,7.1396]
[1728559123359,6.76078113,140.09,140.06,7.1396]
[1728559123681,0.63338113,140.09,140.06,7.1396]
[1728559123860,0.63338113,140.09,140.08,7.1387]
[1728559124174,0.63338113,140.09,140.07,8.56665647]
[1728559126074,0.63338113,140.09,140.07,7.139]
[1728559126570,0.63338113,140.09,140.07,8.56669244]
[1728559126874,0.63338113,140.09,140.06,31.82776979]
[1728559126875,0.63338113,140.09,140.06,25.11449]
[1728559127269,0.63338113,140.09,140.07,1.42771421]
[1728559129179,0.63338113,140.09,140.07,8.56691421]
[1728559130564,0.63338113,140.09,140.08,7.1387]
[1728559131376,0.63338113,140.09,140.08,7.26419]
[1728559132156,0.63338113,140.09,140.08,31.041074]
[1728559132461,0.63338113,140.09,140.08,31.166564]
[1728559136078,0.63338113,140.09,140.08,45.01954379]
[1728559137063,0.63338113,140.09,140.08,31.166564]
[1728559139785,0.63338113,140.09,140.08,32.5939694]
[1728559140682,0.63338113,140.09,140.08,31.166564]
[1728559140986,0.63338113,140.09,140.08,32.59397747]
[1728559141479,0.63338113,140.09,140.08,52.59397747]
[1728559141879,0.63338113,140.09,140.08,27.38968]
[1728559142095,0.63338113,140.09,140.08,52.5939545]
[1728559143559,0.63338113,140.09,140.08,32.5939545]
[1728559143765,0.63338113,140.09,140.08,52.5939545]
[1728559144683,0.63338113,140.09,140.08,51.166564]
[1728559146187,0.63338113,140.09,140.08,65.01954379]
[1728559148479,0.63338113,140.09,140.08,66.4468261]
[1728559150787,0.63338113,140.09,140.08,65.01954379]
[1728559150972,0.63338113,140.09,140.08,66.44682543]
[1728559151994,0.63338113,140.09,140.08,65.01954379]
[1728559153296,0.63338113,140.09,140.08,66.44682416]
[1728559154795,0.63338113,140.09,140.08,65.01954379]
[1728559157898,0.63338113,140.09,140.08,27.38968]
[1728559158083,0.63338113,140.09,140.08,20.25098]
[1728559158392,0.63338113,140.09,140.08,28.81726389]
[1728559159795,0.63338113,140.09,140.08,28.56628389]
[1728559160199,0.63338113,140.09,140.08,52.59414789]
[1728559160382,0.63338113,140.09,140.08,51.166564]
[1728559160777,0.63338113,140.09,140.08,65.01954379]
[1728559161101,0.63338113,140.09,140.08,31.166564]
[1728559162077,0.63338113,140.09,140.08,66.44695663]
[1728559162374,0.63338113,140.09,140.08,65.01954379]
[1728559163181,0.63338113,140.09,140.08,66.44685235]
[1728559163382,0.63338113,140.09,140.08,65.01954379]
[1728559163593,0.63338113,140.09,140.08,51.166564]
[1728559163979,0.63338113,140.09,140.08,65.01954379]
[1728559167201,0.63338113,140.09,140.08,27.1387]
[1728559167417,0.63338113,140.09,140.07,7.1391]
[1728559168720,0.63338113,140.09,140.08,7.1387]
[1728559169295,0.63338113,140.09,140.08,8.56627374]
[1728559170114,0.63338113,140.09,140.07,27.26459]
[1728559170422,0.63338113,140.09,140.07,28.69222242]
[1728559171109,0.63338113,140.09,140.07,27.1391]
[1728559171298,0.63338113,140.09,140.07,20.0]
[1728559171637,0.63338113,140.09,140.07,28.56684411]
[1728559171926,0.63338113,140.09,140.07,27.1392]
[1728559172923,6.77058113,140.11,140.07,27.1392]
[1728559174720,6.77058113,140.11,140.07,28.56686017]
[1728559177123,7.1368,140.12,140.08,7.1387]
[1728559182527,29.51817952,140.13,140.1,7.1376]
[1728559183811,36.65437952,140.13,140.09,8.56547023]
[1728559184006,36.65437952,140.13,140.09,7.138]
[1728559184334,36.65437952,140.13,140.09,8.56547104]
[1728559185326,36.65437952,140.13,140.09,7.138]
[1728559185711,36.65437952,140.13,140.09,8.56547142]
[1728559187739,36.65437952,140.13,140.09,7.138]
[1728559188109,36.65437952,140.13,140.09,8.56546114]
[1728559188614,36.65437952,140.13,140.09,7.138]
[1728559191239,36.65437952,140.13,139.93,363.25126339]
[1728559191240,29.51817952,140.13,139.93,363.25126339]
[1728559191444,7.1378,140.1,140.06,7.1394]
[1728559191627,7.1378,140.1,140.07,5.31158092]
[1728559191825,7.1374,140.11,140.07,7.1392]
[1728559194738,36.65477952,140.13,140.09,7.1379]
[1728559196741,29.51817952,140.13,140.09,17.845]
[1728559197044,36.65467952,140.13,140.09,24.9831]